bitfinex-derivatives/quotes_SOLF0:USTF0_20240927
["timestamp","ask_amount","ask_price","bid_price","bid_amount"]
[1727450893117,3.1781691,160.77,160.75,3.1093]
[1727450893320,14.92,160.8,160.71,14.92]
[1727450893824,14.92,160.78,160.7,2.4288]
[1727450894515,14.92,160.76,160.7,2.4288]
[1727450895116,14.92,160.8,160.7,2.4288]
[1727450895318,14.92,160.74,160.7,2.4288]
[1727450895919,18.0296,160.74,160.71,3.1099]
[1727450896118,18.0296,160.74,160.7,2.4288]
[1727450896319,14.92,160.74,160.7,2.4288]
[1727450896520,3.11324803,160.73,160.7,2.4288]
[1727450897323,3.11324803,160.73,160.71,3.1101]
[1727450898122,14.92,160.72,160.62,89.09672577]
[1727450898326,14.92,160.69,160.65,4.6893]
[1727450898824,14.92,160.74,160.65,4.6893]
[1727450899317,14.92,160.75,160.66,14.92]
[1727450899517,14.92,160.78,160.69,14.92]
[1727450899830,14.92,160.8,160.7,2.4503]
[1727450900020,14.92,160.78,160.7,2.4503]
[1727450900423,3.1092,160.76,160.72,3.1097]
[1727450900724,3.07815803,160.75,160.7,2.4503]
[1727450901123,3.109,160.77,160.7,2.4503]
[1727450901426,3.6024,160.83,160.71,14.92]
[1727450901427,14.92,160.8,160.71,14.92]
[1727450901628,14.92,160.8,160.72,4.739]
[1727450901927,18.0284,160.8,160.76,3.1089]
[1727450902126,18.00438219,160.8,160.76,3.1089]
[1727450902327,18.00438219,160.8,160.72,4.739]
[1727450902828,14.92,160.81,160.72,4.739]
[1727450903131,3.16501624,160.81,160.73,14.92]
[1727450903324,14.92,160.83,160.73,14.92]
[1727450903529,14.92,160.85,160.75,14.92]
[1727450903723,3.1078,160.83,160.75,14.92]
[1727450903926,6.22583262,160.83,160.75,14.92]
[1727450904320,6.22583262,160.83,160.79,3.1084]
[1727450905434,3.108,160.82,160.79,3.1084]
[1727450905631,3.108,160.82,160.78,3.1086]
[1727450906225,3.1082,160.81,160.77,3.1088]
[1727450906626,3.1082,160.81,160.72,4.739]
[1727450906925,6.17755121,160.81,160.72,4.739]
[1727450907929,3.06935121,160.81,160.72,4.739]
[1727450908134,23.89,160.85,160.73,23.89]
[1727450908537,3.1079,160.83,160.79,3.1084]
[1727450908733,6.17662907,160.83,160.79,3.1084]
[1727450908933,3.06872907,160.83,160.79,3.1084]
[1727450909235,23.89,160.85,160.79,3.1084]
[1727450909927,23.89,160.85,160.73,23.89]
[1727450909928,23.89,160.85,160.78,3.1086]
[1727450910434,23.89,160.85,160.73,23.89]
[1727450911138,3.1078,160.83,160.8,3.1082]
[1727450911335,6.17372942,160.83,160.8,3.1082]
[1727450911730,3.06592942,160.83,160.73,23.89]
[1727450911932,67.2,160.87,160.75,23.89]
[1727450912237,67.2,160.87,160.78,23.89]
[1727450912432,3.1073,160.86,160.83,3.1076]
[1727450912641,67.2,160.87,160.76,23.89]
[1727450913035,3.1077,160.84,160.81,3.108]
[1727450913343,23.89,160.85,160.72,4.739]
[1727450913836,23.89,160.82,160.72,4.739]
[1727450914137,26.98964339,160.82,160.78,3.1087]
[1727450914741,3.1085,160.8,160.77,3.1089]
[1727450915135,3.1087,160.79,160.76,3.1091]
[1727450915631,3.1085,160.79,160.72,4.739]
[1727450916239,26.98964339,160.82,160.72,4.739]
[1727450916437,68.9751,160.85,160.73,23.89]
[1727450916438,92.8651,160.85,160.73,23.89]
[1727450916739,70.2874,160.85,160.73,23.89]
[1727450916965,67.18,160.85,160.76,23.89]
[1727450917239,3.1071,160.87,160.83,3.1075]
[1727450917437,3.1071,160.87,160.79,23.89]
[1727450920138,3.1071,160.87,160.84,3.1074]
[1727450920445,3.1068,160.88,160.85,3.1073]
[1727450921041,70.21770099,160.92,160.8,4.7933]
[1727450921240,67.18,160.92,160.8,4.7933]
[1727450921640,3.1065,160.9,160.86,3.107]
[1727450922047,67.18,160.92,160.86,3.107]
[1727450922246,67.18,160.92,160.85,3.1073]
[1727450922449,67.18,160.92,160.8,4.7933]
[1727450922640,3.1065,160.9,160.82,23.89]
[1727450922841,67.18,160.92,160.82,23.89]
[1727450923241,67.18,160.92,160.87,3.1069]
[1727450924051,3.1065,160.9,160.87,3.1069]
[1727450924948,67.18,160.92,160.85,14.92]
[1727450925451,70.2862,160.92,160.89,3.1066]
[1727450925751,67.18,160.92,160.83,14.92]
[1727450926753,67.18,160.92,160.84,2.3703]
[1727450926945,14.92,160.93,160.84,2.3703]
[1727450927142,3.13802577,160.94,160.87,14.92]
[1727450927446,3.1056,160.95,160.87,14.92]
[1727450927645,3.1056,160.95,160.88,4.8612]
[1727450928046,3.1056,160.95,160.92,3.106]
[1727450928440,3.1056,160.94,160.92,3.106]
[1727450929473,3.1059,160.93,160.88,4.8612]
[1727450929747,14.92,160.94,160.84,91.37278604]
[1727450929951,14.92,160.94,160.85,4.7822]
[1727450930251,3.1061,160.92,160.89,3.1065]
[1727450930545,3.1059,160.93,160.9,3.1062]
[1727450931142,14.92,160.92,160.88,3.1068]
[1727450931348,14.92,160.92,160.85,4.7822]
[1727450931850,18.0262,160.92,160.85,4.7822]
[1727450932252,18.0262,160.92,160.89,3.1066]
[1727450932453,3.1063,160.91,160.85,4.7822]
[1727450932947,3.1063,160.91,160.88,3.1067]
[1727450933346,3.1064,160.9,160.87,3.1068]
[1727450933551,14.92,160.89,160.87,3.1068]
[1727450933753,14.92,160.89,160.84,76.45278604]
[1727450934849,18.0266,160.89,160.84,76.45278604]
[1727450935049,14.92,160.89,160.84,74.08248604]
[1727450935246,14.92,160.89,160.87,3.1069]
[1727450936864,3.10012761,160.93,160.84,74.08248604]
[1727450937151,14.92,160.91,160.84,74.08248604]
[1727450937551,18.0263,160.91,160.89,3.1065]
[1727450937951,18.0263,160.91,160.88,3.1067]
[1727450938553,18.0263,160.91,160.84,74.08248604]
[1727450939757,18.0263,160.91,160.89,3.1065]
[1727450940455,14.92,160.91,160.89,3.1065]
[1727450940754,14.92,160.91,160.84,74.08248604]
[1727450940955,14.92,160.87,160.84,74.08248604]
[1727450941257,3.6099,160.92,160.84,74.08248604]
[1727450941457,14.92,160.92,160.84,89.00248604]
[1727450941657,3.17882833,160.91,160.9,3.1063]
[1727450941855,14.92,160.92,160.85,4.819]
[1727450942055,3.16350363,160.91,160.85,4.819]
[1727450942255,3.16350363,160.91,160.89,3.1064]
[1727450942559,3.16350363,160.91,160.85,4.819]
[1727450943056,3.16350363,160.91,160.9,3.1064]
[1727450943762,14.92,160.94,160.86,14.92]
[1727450944058,14.92,160.94,160.86,2.2534]
[1727450944658,14.92,160.92,160.86,2.2534]
[1727450945259,14.92,160.92,160.9,3.1064]
[1727450945566,18.026,160.92,160.9,3.1064]
[1727450945865,14.92,160.92,160.9,3.1064]
[1727450946768,67.14,160.95,160.88,14.92]
[1727450946977,67.14,160.95,160.9,14.92]
[1727450947166,3.1040505,160.97,160.92,14.92]
[1727450947361,14.92,160.98,160.88,21.1334]
[1727450947566,18.09585459,160.98,160.88,21.1334]
[1727450947767,18.09585459,160.98,160.88,14.92]
[1727450948066,18.09585459,160.98,160.9,14.92]
[1727450948562,3.17585459,160.98,160.9,14.92]
[1727450948768,14.92,161.0,160.9,14.92]
[1727450949568,14.92,160.98,160.9,14.92]
[1727450949764,17.96982158,160.98,160.88,14.92]
[1727450949966,17.96982158,160.98,160.93,3.1057]
[1727450950365,14.92,160.96,160.88,14.92]
[1727450950664,14.92,160.96,160.92,3.1059]
[1727450951058,3.14430295,160.95,160.93,3.1058]
[1727450951378,14.92,160.96,160.88,14.92]
[1727450951867,3.05176058,160.95,160.88,14.92]
[1727450952172,3.05176058,160.95,160.93,3.1057]
[1727450953066,14.92,160.96,160.91,3.1061]
[1727450953264,14.92,160.96,160.86,17.1734]
[1727450953660,17.96026092,160.96,160.86,17.1734]
[1727450954568,17.96026092,160.96,160.92,3.1059]
[1727450956269,17.96026092,160.96,160.88,14.92]
[1727450956470,3.04026092,160.96,160.88,14.92]
[1727450956774,82.06,161.0,160.96,3.1052]
[1727450956973,82.06,161.0,160.89,14.92]
[1727450957372,82.06,161.0,160.96,3.1051]
[1727450959672,14.92,160.98,160.89,14.92]
[1727450959878,14.92,160.97,160.87,14.92]
[1727450960174,3.15125528,160.98,160.86,2.2534]
[1727450960175,67.14,161.0,160.91,3.106]
[1727450960374,14.92,160.94,160.86,2.2534]
[1727450960570,18.02743605,160.94,160.86,2.2534]
[1727450961872,18.02743605,160.94,160.91,3.1061]
[1727450962967,14.92,160.92,160.7,225.0]
[1727450963164,14.92,160.87,160.78,4.7655]
[1727450963364,14.92,160.84,160.8,3.1083]
[1727450963570,14.92,160.84,160.78,4.7655]
[1727450963772,14.92,160.82,160.74,14.92]
[1727450963972,3.12748187,160.81,160.72,19.6855]
[1727450964775,14.92,160.82,160.74,14.92]
[1727450965081,18.01964339,160.82,160.74,14.92]
[1727450965770,67.12,160.89,160.76,14.92]
[1727450965966,14.92,160.87,160.78,14.92]
[1727450966474,14.92,160.87,160.81,3.108]
[1727450967375,14.92,160.87,160.78,14.92]
[1727450967570,14.92,160.87,160.79,2.4001]
[1727450967773,14.92,160.87,160.83,3.1076]
[1727450968969,14.92,160.84,160.79,2.4001]
[1727450969268,18.0167695,160.84,160.79,2.4001]
[1727450969968,18.0167695,160.84,160.81,3.108]
[1727450972067,18.0167695,160.84,160.82,3.1079]
[1727450973574,18.0167695,160.84,160.83,3.1077]
[1727450973969,67.16,160.87,160.79,17.3201]
[1727450974273,67.16,160.87,160.8,4.6158]
[1727450974679,67.16,160.87,160.86,3.1072]
[1727450975781,14.92,160.93,160.83,14.92]
[1727450976278,14.92,160.93,160.9,3.1063]
[1727450976784,14.92,160.93,160.83,14.92]
[1727450977282,14.92,160.91,160.83,14.92]
[1727450977982,3.0620367,160.9,160.88,3.1067]
[1727450979483,14.92,160.91,160.87,3.1068]
[1727450979784,14.92,160.91,160.83,14.92]
[1727450979978,17.95592124,160.91,160.83,14.92]
[1727450980183,17.95592124,160.91,160.88,3.1066]
[1727450980390,14.92,160.93,160.85,14.92]
[1727450980579,14.92,160.93,160.9,3.1063]
[1727450981385,14.92,160.93,160.86,2.4946]
[1727450981584,70.19883429,160.96,160.87,14.92]
[1727450981780,70.19883429,160.96,160.87,19.794]
[1727450982288,14.92,160.95,160.87,4.874]
[1727450982586,14.92,160.95,160.93,3.1058]
[1727450982773,14.92,160.95,160.87,4.874]
[1727450982977,14.92,160.95,160.93,3.1056]
[1727450983375,70.19883429,160.96,160.88,14.92]
[1727450983587,70.19883429,160.96,160.94,3.1055]
[1727450984089,70.19883429,160.96,160.88,14.92]
[1727450984090,67.16,160.96,160.95,3.1054]
[1727450985982,67.16,160.96,160.94,3.1055]
[1727450986177,67.16,160.96,160.9,14.92]
[1727450986587,67.16,160.96,160.94,3.1055]
[1727450987182,67.16,160.96,160.87,11.088]
[1727450987183,14.92,160.95,160.87,2.4963]
[1727450987479,14.92,160.91,160.86,2.4946]
[1727450987987,14.92,160.92,160.86,2.4946]
[1727450988283,3.16811416,160.97,160.89,14.92]
[1727450988489,14.92,160.98,160.89,14.92]
[1727450988784,18.0511335,160.98,160.89,14.92]
[1727450989192,18.0511335,160.98,160.94,3.1055]
[1727450989495,3.1311335,160.98,160.9,2.3253]
[1727450989793,14.92,161.0,160.9,4.8204]
[1727450990093,14.92,161.0,160.91,14.92]
[1727450991285,14.92,161.0,160.97,3.1049]
[1727450992289,14.92,161.0,160.91,14.92]
[1727450992486,67.14,161.01,160.93,14.92]
[1727450992885,14.92,161.0,160.91,14.92]
[1727450993790,14.92,161.0,160.97,3.1049]
[1727450994392,14.92,161.0,160.98,3.1048]
[1727450994595,67.14,161.01,160.93,14.92]
[1727450994798,67.14,161.01,160.94,2.2755]
[1727450995094,67.14,161.01,160.99,3.1045]
[1727450995488,67.14,161.01,160.98,3.1048]
[1727450996094,67.14,161.01,160.99,3.1046]
[1727450997291,14.92,161.04,161.0,3.1045]
[1727450998597,14.92,161.04,160.99,3.1046]
[1727450998796,14.92,161.02,160.99,3.1046]
[1727451000594,14.92,161.06,160.97,14.92]
[1727451000899,14.92,161.06,160.94,8.4867]
[1727451001096,18.519164,161.08,160.99,14.92]
[1727451001294,0.55155601,161.08,161.03,14.92]
[1727451001500,0.55155601,161.08,161.07,3.1031]
[1727451002602,0.55155601,161.08,161.04,2.3711]
[1727451003199,2.45624937,161.09,161.04,2.3711]
[1727451003200,2.45624937,161.09,161.08,3.1029]
[1727451003606,2.45624937,161.09,161.04,2.3711]
[1727451004601,5.11079688,161.11,161.08,14.92]
[1727451004800,5.11079688,161.11,161.09,2.3947]
[1727451004996,5.32686244,161.12,161.09,17.3147]
[1727451005203,5.32686244,161.12,161.11,3.1023]
[1727451006304,0.53359028,161.13,161.12,3.1021]
[1727451006505,6.20080683,161.15,161.11,14.92]
[1727451006704,16.00736365,161.17,161.14,14.92]
[1727451006897,16.59000497,161.19,161.18,3.101]
[1727451007097,19.83000382,161.21,161.18,14.92]
[1727451007297,2.31502072,161.2,161.19,3.1008]
[1727451008204,19.83000382,161.21,161.2,18.0206]
[1727451008416,19.07000382,161.21,161.2,26.9006]
[1727451008805,15.97000382,161.21,161.2,26.9006]
[1727451009303,12.97000382,161.21,161.2,26.9006]
[1727451009506,12.97000382,161.21,161.2,30.04528354]
[1727451009705,12.97000382,161.21,161.03,73.99038818]
[1727451009906,12.97000382,161.21,161.1,23.8]
[1727451010107,12.97000382,161.21,161.12,23.8]
[1727451011112,12.97000382,161.21,161.12,26.96546202]
[1727451011504,12.97000382,161.21,161.2,3.1006]
[1727451015509,12.88374568,161.23,161.22,3.1002]
[1727451016807,12.88374568,161.23,161.2,3.1005]
[1727451017013,12.88374568,161.23,161.16,23.8]
[1727451017414,12.88374568,161.23,161.22,3.1002]
[1727451017812,12.88374568,161.23,161.14,23.8]
[1727451018119,12.88374568,161.23,161.2,3.1006]
[1727451018409,12.88374568,161.23,161.14,23.8]
[1727451018917,12.88374568,161.23,161.21,3.1003]
[1727451022621,12.88374568,161.23,161.14,23.8]
[1727451022822,23.8,161.2,161.09,23.8]
[1727451023029,23.8,161.17,161.11,3.1022]
[1727451023323,23.8,161.17,161.08,73.96263181]
[1727451023517,3.1016,161.15,161.11,3.1022]
[1727451024112,3.1016,161.15,161.08,73.96263181]
[1727451024113,3.1016,161.15,161.12,3.1021]
[1727451024312,3.1014,161.16,161.12,3.1021]
[1727451024514,23.8,161.17,161.08,73.96263181]
[1727451025714,3.1025,161.1,161.08,73.96263181]
[1727451026019,23.8,161.1,161.08,38.46503181]
[1727451026220,23.8,161.1,160.97,26.94225622]
[1727451026427,3.1036,161.05,161.0,3.1044]
[1727451026826,23.8,161.07,160.96,3.14039396]
[1727451027323,23.8,161.1,160.97,23.8]
[1727451028121,3.103,161.08,161.03,3.1037]
[1727451028628,23.8,161.1,160.97,23.8]
[1727451028821,3.1029,161.09,161.04,3.1035]
[1727451029019,23.8,161.1,161.04,3.1035]
[1727451029223,23.8,161.1,160.98,2.2728]
[1727451029535,23.8,161.1,160.99,3.07351845]
[1727451029723,23.8,161.08,160.98,2.2728]
[1727451030028,23.8,161.05,160.93,2.3036]
[1727451030327,23.8,161.05,160.94,2.2728]
[1727451031218,4.8853,161.06,160.97,23.8]
[1727451031421,2.3039,161.07,160.97,23.8]
[1727451032024,5.4071,161.07,160.97,23.8]
[1727451032727,2.3039,161.07,160.97,23.8]
[1727451033315,2.3039,161.07,160.99,23.8]
[1727451033925,2.3039,161.07,160.96,23.8]
[1727451034318,5.4072,161.07,161.02,3.1039]
[1727451034522,5.4072,161.07,160.96,23.8]
[1727451035027,3.1033,161.06,160.96,23.8]
[1727451035732,2.3039,161.07,160.96,23.8]
[1727451036228,5.4071,161.07,160.96,23.8]
[1727451036623,5.4071,161.07,161.03,3.1037]
[1727451037032,3.1033,161.06,160.96,23.8]
[1727451038120,3.1033,161.06,161.02,3.1039]
[1727451038623,5.4071,161.07,160.96,23.8]
[1727451038829,2.3039,161.07,160.99,23.8]
[1727451039326,28.6853,161.11,161.06,3.1033]
[1727451039634,4.8853,161.11,161.01,23.8]
[1727451039924,3.1027,161.09,161.05,3.1034]
[1727451040133,23.8,161.09,160.96,23.8]
[1727451040322,3.1036,161.05,160.96,23.8]
[1727451040521,23.8,161.07,160.94,26.0728]
[1727451040833,23.8,161.04,160.94,2.2728]
[1727451041024,2.4789,161.03,160.94,2.2728]
[1727451041221,23.8,161.01,160.93,2.3036]
[1727451041524,23.8,160.99,160.89,2.3306]
[1727451041731,23.8,160.99,160.83,80.19118076]
[1727451041732,23.8,160.96,160.85,23.8]
[1727451041933,23.8,160.96,160.84,2.4265]
[1727451041934,2.4789,160.95,160.84,2.4265]
[1727451042230,2.4789,160.95,160.87,23.8]
[1727451042927,2.4789,160.95,160.93,3.1056]
[1727451043325,2.4789,160.95,160.92,3.1059]
[1727451043633,2.4789,160.95,160.87,23.8]
[1727451044538,2.4789,160.95,160.93,3.1058]
[1727451045327,2.4789,160.95,160.84,26.2265]
[1727451045837,3.1059,160.93,160.84,2.4265]
[1727451046230,2.4789,160.95,160.84,2.4265]
[1727451046930,23.8,160.91,160.83,76.30648076]
[1727451047337,23.8,160.91,160.83,73.97588076]
[1727451047635,23.8,160.89,160.83,73.97588076]
[1727451047826,23.8,160.87,160.83,73.97588076]
[1727451048026,2.4502,160.86,160.83,73.97588076]
[1727451048233,23.8,160.84,160.74,4.7435]
[1727451048832,3.1078,160.83,160.78,3.1086]
[1727451049044,6.2097,160.99,160.77,23.8]
[1727451049335,2.3764,160.9,160.8,23.8]
[1727451050038,2.3764,160.9,160.86,3.1071]
[1727451051334,2.3764,160.9,160.88,3.1066]
[1727451051636,67.1,160.91,160.82,23.8]
[1727451051937,2.4904,160.95,160.85,23.8]
[1727451052330,3.106,160.92,160.85,23.8]
[1727451052838,5.5958,160.95,160.91,3.1061]
[1727451053039,5.5958,160.95,160.85,23.8]
[1727451053040,2.4904,160.95,160.85,23.8]
[1727451053542,5.5959,160.95,160.85,23.8]
[1727451053936,67.12,160.97,160.84,4.7907]
[1727451053937,67.12,160.97,160.87,23.8]
[1727451054737,70.2252,160.97,160.87,23.8]
[1727451055640,3.1052,160.97,160.87,23.8]
[1727451055835,26.90196002,161.0,160.87,23.8]
[1727451056339,23.8,160.98,160.87,23.8]
[1727451056738,26.90196002,161.0,160.87,23.8]
[1727451056938,23.8,161.0,160.87,23.8]
[1727451057334,3.1049,160.98,160.94,3.1055]
[1727451058244,3.1047,160.99,160.95,3.1054]
[1727451058441,3.16181609,161.0,160.89,23.8]
[1727451058742,23.8,161.02,160.89,23.8]
[1727451059142,3.03378245,161.02,160.92,23.8]
[1727451059544,3.1044,161.01,160.92,23.8]
[1727451059744,3.1044,161.01,160.89,23.8]
[1727451060137,3.1044,161.01,160.96,3.1051]
[1727451060444,26.83378245,161.02,160.89,23.8]
[1727451060641,23.8,161.0,160.87,23.8]
[1727451060941,3.1052,160.97,160.93,3.1057]
[1727451061440,3.1052,160.97,160.84,104.98156188]
[1727451061441,23.8,160.97,160.84,104.98156188]
[1727451061942,2.2644,160.96,160.84,104.98156188]
[1727451062142,3.1054,160.95,160.84,104.98156188]
[1727451062531,2.2644,160.96,160.84,104.98156188]
[1727451062731,2.3138,160.94,160.84,78.85816188]
[1727451063046,3.1061,160.92,160.87,3.1068]
[1727451063243,3.1061,160.92,160.84,78.85816188]
[1727451064441,2.3138,160.94,160.84,78.85816188]
[1727451064742,23.8,160.92,160.84,74.06746188]
[1727451065140,3.1065,160.9,160.84,74.06746188]
[1727451065536,23.8,160.92,160.84,74.06746188]
[1727451065732,3.1063,160.91,160.84,74.06746188]
[1727451066242,2.3138,160.94,160.84,74.06746188]
[1727451067243,23.8,160.9,160.84,74.06746188]
[1727451067438,3.05301514,160.89,160.84,74.06746188]
[1727451067652,23.8,160.9,160.84,74.06746188]
[1727451067842,23.8,160.9,160.85,3.1073]
[1727451067843,3.1069,160.88,160.85,3.1073]
[1727451068546,3.1067,160.89,160.86,3.1071]
[1727451069051,23.8,160.92,160.84,74.06746188]
[1727451069251,3.1069,160.88,160.85,3.1073]
[1727451069945,3.1067,160.89,160.86,3.1071]
[1727451070245,23.8,160.92,160.84,74.06746188]
[1727451070452,23.8,160.9,160.84,74.06746188]
[1727451070645,23.8,160.87,160.84,74.06746188]
[1727451071448,26.98535054,160.87,160.84,74.06746188]
[1727451071640,26.98535054,160.87,160.76,4.6795]
[1727451071841,23.8,160.85,160.76,4.6795]
[1727451072250,3.108,160.82,160.79,3.1084]
[1727451072548,3.108,160.82,160.76,4.6795]
[1727451073054,3.1078,160.83,160.76,4.6795]
[1727451073849,3.1078,160.83,160.8,3.1082]
[1727451074748,3.1078,160.83,160.81,3.1081]
[1727451075052,3.1076,160.84,160.81,3.1081]
[1727451076253,3.1032683,160.85,160.81,3.1081]
[1727451076254,3.1078,160.83,160.81,3.1081]
[1727451076452,23.8,160.83,160.72,23.8]
[1727451076649,3.18272979,160.82,160.7,23.8]
[1727451076958,26.9578477,160.83,160.75,3.1091]
[1727451077257,2.262,160.82,160.75,3.1091]
[1727451077652,3.1086,160.79,160.76,3.109]
[1727451078248,23.8,160.8,160.69,7.2545]
[1727451078961,3.1088,160.78,160.69,7.2545]
[1727451079354,23.8,160.8,160.69,7.2545]
[1727451079653,3.1088,160.78,160.75,3.1092]
[1727451080158,23.8,160.8,160.69,7.2545]
[1727451080349,23.8,160.78,160.69,7.2545]
[1727451080551,23.8,160.78,160.69,4.8474]
[1727451080754,2.262,160.82,160.69,3.1104]
[1727451080755,23.8,160.75,160.69,3.1104]
[1727451081156,3.1103,160.7,160.64,7.2274]
[1727451081352,3.1103,160.7,160.61,26.92954706]
[1727451081653,3.1223899,160.71,160.61,26.92954706]
[1727451081654,3.1105,160.69,160.61,26.92954706]
[1727451082362,4.7748,160.77,160.64,3.1114]
[1727451082363,26.94448375,160.71,160.64,3.1114]
[1727451082552,23.8,160.71,160.64,3.1114]
[1727451082851,23.8,160.71,160.59,3.14074957]
[1727451083257,23.8,160.68,160.58,4.773]
[1727451083451,26.85813298,160.68,160.62,3.1117]
[1727451083651,67.18,160.74,160.62,23.8]
[1727451083859,4.7748,160.77,160.68,23.8]
[1727451084053,2.4399,160.77,160.7,23.8]
[1727451084258,3.1088,160.78,160.7,23.8]
[1727451084459,7.1475,160.82,160.74,3.1093]
[1727451084651,23.8,160.81,160.7,23.8]
[1727451084848,3.109,160.77,160.7,23.8]
[1727451085054,23.8,160.81,160.75,3.1092]
[1727451085262,23.8,160.81,160.7,23.8]
[1727451085754,3.1089,160.78,160.74,3.1094]
[1727451086057,3.1089,160.78,160.7,23.8]
[1727451086058,2.3057,160.82,160.72,23.8]
[1727451086256,5.4138,160.82,160.73,2.4258]
[1727451086458,3.1081,160.82,160.73,2.4258]
[1727451086756,91.0,160.86,160.74,2.294]
[1727451087263,67.2,160.86,160.75,23.8]
[1727451087461,23.8,160.91,160.77,23.8]
[1727451087660,2.3278,160.92,160.82,23.8]
[1727451087661,4.6537,160.92,160.82,23.8]
[1727451087955,67.2,160.94,160.85,23.8]
[1727451088162,26.86983231,160.99,160.85,23.8]
[1727451088459,23.8,160.99,160.89,3.1065]
[1727451088865,26.86666747,160.99,160.85,23.8]
[1727451089059,26.86666747,160.99,160.91,3.1062]
[1727451089362,3.06666747,160.99,160.87,23.8]
[1727451089572,91.0,161.02,160.87,23.8]
[1727451089762,0.94290931,161.01,160.87,23.8]
[1727451089959,4.09167839,161.01,160.87,23.8]
[1727451090256,3.1049,160.98,160.87,23.8]
[1727451090463,91.0,161.02,160.87,23.8]
[1727451090758,3.15405225,161.06,160.95,23.8]
[1727451091060,3.1038,161.04,160.99,3.1045]
[1727451091257,23.8,161.07,160.92,26.91893471]
[1727451091462,0.94260476,161.06,160.92,26.91893471]
[1727451091762,3.1042,161.02,160.97,3.1048]
[1727451092756,3.1042,161.02,160.98,3.1048]
[1727451093761,3.1042,161.02,160.97,3.105]
[1727451095158,23.8,161.04,160.95,3.1053]
[1727451095365,23.8,161.04,160.93,4.8828]
[1727451095758,3.1043,161.01,160.96,3.1051]
[1727451097079,23.8,161.01,160.87,23.8]
[1727451097259,23.8,160.96,160.86,2.4582]
[1727451097464,3.1061,160.92,160.87,3.1068]
[1727451097767,26.84813688,160.96,160.86,2.4582]
[1727451097964,3.1069,160.88,160.84,5.4565]
[1727451098169,3.1069,160.88,160.84,3.1075]
[1727451098471,23.8,160.93,160.81,2.4582]
[1727451098766,23.8,160.93,160.82,97.87830417]
[1727451098970,26.84813688,160.96,160.82,97.87830417]
[1727451099164,26.84813688,160.96,160.84,23.8]
[1727451099364,0.94320041,160.95,160.84,23.8]
[1727451099666,0.94320041,160.95,160.82,97.87830417]
[1727451100065,3.1066,160.89,160.82,97.87830417]
[1727451100262,26.84813688,160.96,160.82,97.87830417]
[1727451100464,23.8,160.94,160.82,74.07830417]
[1727451100669,0.94338402,160.93,160.82,74.07830417]
[1727451100866,3.1067,160.89,160.82,74.07830417]
[1727451101173,3.14155009,160.92,160.82,74.07830417]
[1727451101370,3.1068,160.89,160.84,3.1075]
[1727451102266,23.8,160.94,160.82,97.87830417]
[1727451102474,0.94346292,160.93,160.82,97.87830417]
[1727451102662,26.93346694,160.96,160.86,3.1071]
[1727451102861,23.8,160.94,160.82,97.87830417]
[1727451103061,0.9434026,160.93,160.82,97.87830417]
[1727451103260,67.14,160.97,160.87,23.8]
[1727451103871,67.14,160.97,160.88,3.12483982]